bitfinex/quotes_BTCUSD_20230405
["timestamp","ask_amount","ask_price","bid_price","bid_amount"]
[1680686236008,0.04161992,28579.0,28578.0,8.1391987]
[1680686236582,0.04161992,28579.0,28578.0,8.235058]
[1680686236779,0.04161992,28579.0,28578.0,8.18558476]
[1680686236980,0.05771992,28579.0,28578.0,8.18552476]
[1680686237807,0.05771992,28579.0,28578.0,8.0689336]
[1680686238258,0.05771992,28579.0,28578.0,8.16047867]
[1680686238629,0.05771992,28579.0,28578.0,6.54100163]
[1680686238829,0.05771992,28579.0,28578.0,6.91158421]
[1680686239038,0.05771992,28579.0,28578.0,6.911586]
[1680686239655,0.05771992,28579.0,28578.0,7.311586]
[1680686239845,0.05771992,28579.0,28578.0,6.911586]
[1680686240043,0.05771992,28579.0,28578.0,6.883586]
[1680686240240,0.04491992,28579.0,28578.0,6.911586]
[1680686240446,0.04491992,28579.0,28578.0,6.883586]
[1680686240612,0.04491992,28579.0,28578.0,7.311586]
[1680686241136,0.54152729,28579.0,28578.0,5.7825]
[1680686241340,0.55032729,28579.0,28578.0,0.17656087]
[1680686241722,0.050772,28577.0,28576.0,0.00012]
[1680686241938,0.050772,28577.0,28575.0,0.16743662]
[1680686241939,0.19596881,28577.0,28575.0,0.16743662]
[1680686242163,0.056844,28577.0,28576.0,0.08372455]
[1680686242381,0.0085,28576.0,28575.0,0.06823662]
[1680686242596,0.0085,28576.0,28573.0,0.18508799]
[1680686242597,0.1,28574.0,28573.0,0.18508799]
[1680686242790,0.055252,28574.0,28573.0,0.18508799]
[1680686243217,0.4297603,28574.0,28573.0,8.799e-05]
[1680686243454,0.4297603,28574.0,28568.0,6e-05]
[1680686243455,0.5,28572.0,28568.0,6e-05]
[1680686243664,0.0033,28569.0,28568.0,6e-05]
[1680686243869,0.0118,28569.0,28567.0,0.33832953]
[1680686244076,0.0085,28569.0,28567.0,0.08976279]
[1680686244290,0.0085,28569.0,28568.0,0.059]
[1680686244489,0.0033,28569.0,28568.0,0.059]
[1680686245460,0.0183,28569.0,28568.0,0.06]
[1680686245676,0.0033,28569.0,28568.0,0.059]
[1680686245884,0.0113,28569.0,28568.0,0.06]
[1680686246093,0.0113,28569.0,28568.0,0.059]
[1680686246094,0.0033,28569.0,28568.0,0.059]
[1680686246276,0.0183,28569.0,28568.0,0.06]
[1680686246610,0.0033,28569.0,28568.0,0.059]
[1680686246845,0.0113,28569.0,28568.0,0.06]
[1680686247424,0.0033,28569.0,28568.0,0.15127794]
[1680686248572,0.0183,28569.0,28568.0,0.15227794]
[1680686248800,0.0033,28569.0,28568.0,0.15127794]
[1680686249021,0.0113,28569.0,28568.0,0.15227794]
[1680686249485,0.0033,28569.0,28568.0,0.15627794]
[1680686249744,0.0043,28569.0,28568.0,0.15627794]
[1680686249947,0.0033,28569.0,28568.0,0.15127794]
[1680686250121,0.0113,28569.0,28568.0,0.15227794]
[1680686251180,0.0033,28569.0,28568.0,0.15127794]
[1680686251305,0.0043,28569.0,28568.0,0.15627794]
[1680686251516,0.0033,28569.0,28568.0,0.15127794]
[1680686251945,0.0113,28569.0,28568.0,0.15227794]
[1680686252581,0.0033,28569.0,28568.0,0.15127794]
[1680686253007,0.0043,28569.0,28568.0,0.15627794]
[1680686253443,0.0043,28569.0,28568.0,0.064]
[1680686253849,0.0033,28569.0,28568.0,0.059]
[1680686254050,0.0113,28569.0,28568.0,0.06]
[1680686254264,0.0033,28569.0,28568.0,0.059]
[1680686254690,0.0043,28569.0,28568.0,0.059]
[1680686254977,0.0033,28569.0,28568.0,0.059]
[1680686255172,0.0113,28569.0,28568.0,0.06]
[1680686255578,0.0033,28569.0,28568.0,0.059]
[1680686255821,0.0043,28569.0,28568.0,0.059]
[1680686256040,0.35229374,28569.0,28568.0,0.059]
[1680686256238,0.35244374,28569.0,28568.0,0.059]
[1680686256527,0.35259374,28569.0,28568.0,0.059]
[1680686256954,0.35159374,28569.0,28568.0,0.059]
[1680686257285,0.35159374,28569.0,28568.0,0.06075]
[1680686257286,0.0036,28569.0,28568.0,0.06075]
[1680686257519,0.0113,28569.0,28568.0,0.14939943]
[1680686257752,0.0033,28569.0,28568.0,0.14839943]
[1680686257891,0.0043,28569.0,28568.0,0.15339943]
[1680686258066,0.0043,28569.0,28568.0,0.14839943]
[1680686258296,0.0033,28569.0,28568.0,0.14839943]
[1680686258505,0.0053,28569.0,28568.0,0.15339943]
[1680686258762,0.0053,28569.0,28568.0,0.14839943]
[1680686258763,0.0033,28569.0,28568.0,0.14839943]
[1680686259088,0.0053,28569.0,28568.0,0.15339943]
[1680686259665,0.002,28569.0,28568.0,0.15339943]
[1680686261439,0.002,28569.0,28568.0,0.15328465]
[1680686264581,0.002,28569.0,28568.0,0.51499521]
[1680686265007,0.002,28569.0,28568.0,0.42734578]
[1680686265218,0.002,28569.0,28568.0,0.51897376]
[1680686266856,0.0036,28573.0,28568.0,0.51397376]
[1680686267059,0.002,28569.0,28568.0,0.1625132]
[1680686267267,0.002,28569.0,28568.0,0.07613522]
[1680686267482,0.002,28569.0,28568.0,0.2823501]
[1680686267711,0.002,28569.0,28568.0,0.32401243]
[1680686267939,0.0003,28578.0,28569.0,0.5]
[1680686268154,0.0003,28578.0,28572.0,0.1]
[1680686268371,0.0003,28578.0,28573.0,0.012247]
[1680686269063,0.0003,28578.0,28575.0,0.0809]
[1680686269279,0.04191992,28579.0,28575.0,0.086148]
[1680686269713,0.001,28578.0,28575.0,0.614048]
[1680686269977,0.04161992,28579.0,28576.0,0.1813]
[1680686270192,0.001,28578.0,28577.0,0.012246]
[1680686270412,0.04161992,28579.0,28577.0,0.012246]
[1680686271256,0.04161992,28579.0,28578.0,0.0871]
[1680686271469,0.04161992,28579.0,28578.0,0.088849]
[1680686271684,0.04161992,28579.0,28578.0,0.17601883]
[1680686272512,0.04161992,28579.0,28578.0,0.088849]
[1680686272733,0.04161992,28579.0,28578.0,0.116849]
[1680686273155,0.04161992,28579.0,28578.0,0.21331085]
[1680686273360,0.04161992,28579.0,28578.0,0.116849]
[1680686273569,0.04161992,28579.0,28578.0,0.23003979]
[1680686273771,0.04161992,28579.0,28578.0,0.116849]
[1680686274604,0.04161992,28579.0,28578.0,0.21076808]
[1680686275261,0.04161992,28579.0,28578.0,0.116849]
[1680686275680,0.04161992,28579.0,28578.0,0.20693223]
[1680686276085,0.04161992,28579.0,28578.0,0.17893223]
[1680686276715,0.04161992,28579.0,28578.0,0.20693223]
[1680686278351,0.04161992,28579.0,28578.0,0.56164279]
[1680686280169,0.04161992,28579.0,28578.0,0.47155956]
[1680686280595,0.04161992,28579.0,28578.0,0.576005]
[1680686284128,0.04191992,28579.0,28578.0,0.47155956]
[1680686284355,0.51093158,28579.0,28578.0,0.116849]
[1680686284567,0.36903477,28579.0,28578.0,0.116849]
[1680686284781,0.36903477,28579.0,28578.0,0.1151]
[1680686284999,0.36903477,28579.0,28578.0,0.0871]
[1680686285480,0.36903477,28579.0,28577.0,0.21424889]
[1680686285696,0.36903477,28579.0,28578.0,0.028]
[1680686286349,0.04191992,28579.0,28577.0,0.21424889]
[1680686286573,0.04161992,28579.0,28578.0,0.002]
[1680686286819,0.04191992,28579.0,28577.0,0.21599789]
[1680686287046,0.04191992,28579.0,28578.0,0.009]
[1680686287935,0.04191992,28579.0,28577.0,0.21424889]
[1680686288170,0.04191992,28579.0,28578.0,0.002]
[1680686288960,0.04191992,28579.0,28577.0,0.21424889]
[1680686289170,0.39661554,28579.0,28577.0,0.21424889]
[1680686290254,0.39621565,28579.0,28577.0,0.21442889]
[1680686291335,0.39621565,28579.0,28577.0,0.21642889]
[1680686293110,0.39321565,28579.0,28577.0,0.21442889]
[1680686293350,0.39321565,28579.0,28577.0,0.13002]
[1680686293565,0.39321565,28579.0,28577.0,0.1299]
[1680686297452,0.42228901,28578.0,28577.0,0.1299]
[1680686298771,0.42228901,28578.0,28577.0,0.1279]
[1680686298974,0.42228901,28578.0,28577.0,0.1299]
[1680686300782,0.42228901,28578.0,28577.0,0.1279]
[1680686300984,0.47918301,28578.0,28577.0,0.1279]
[1680686301195,0.47882701,28578.0,28577.0,0.1279]
[1680686301605,0.47587501,28578.0,28577.0,0.1279]
[1680686301800,0.42528901,28578.0,28577.0,0.1279]
[1680686304031,0.42228901,28578.0,28577.0,0.1279]
[1680686304241,0.42228901,28578.0,28577.0,0.1299]
[1680686304661,0.42228901,28578.0,28577.0,0.1279]
[1680686304884,0.42528901,28578.0,28577.0,0.1279]
[1680686305490,0.42528901,28578.0,28577.0,0.21107147]
[1680686305698,0.42558901,28578.0,28577.0,0.1279]
[1680686305971,0.42528901,28578.0,28577.0,0.1279]
[1680686306462,0.42528901,28578.0,28577.0,0.21107147]
[1680686306660,0.42558901,28578.0,28577.0,0.21107147]
[1680686306883,0.42258901,28578.0,28577.0,0.08317147]
[1680686307092,0.42228901,28578.0,28577.0,0.08317147]
[1680686307299,0.42228901,28578.0,28577.0,0.08517147]
[1680686307498,0.42258901,28578.0,28576.0,0.28439914]
[1680686307701,0.42558901,28578.0,28576.0,0.28439914]
[1680686308123,0.42558901,28578.0,28576.0,0.40643149]
[1680686308478,0.42258901,28578.0,28576.0,0.29632621]
[1680686310027,0.42258901,28578.0,28576.0,0.5066841]
[1680686310223,0.42258901,28578.0,28576.0,0.5046841]
[1680686310571,0.42258901,28578.0,28576.0,0.5136841]
[1680686310748,0.42258901,28578.0,28576.0,0.5046841]
[1680686310947,0.42258901,28578.0,28577.0,0.16667721]
[1680686313237,0.42558901,28578.0,28577.0,0.16667721]
[1680686313525,0.0003,28578.0,28577.0,0.16842621]
[1680686313697,0.04152003,28579.0,28577.0,0.16842621]
[1680686313905,0.003,28578.0,28577.0,0.16942621]
[1680686314498,0.48876501,28579.0,28577.0,0.3767841]
[1680686314719,0.49176501,28579.0,28577.0,0.3777841]
[1680686314906,0.48876501,28579.0,28577.0,0.3767841]
[1680686315352,0.48876501,28579.0,28577.0,0.3777841]
[1680686315703,0.003,28578.0,28577.0,0.3787841]
[1680686316306,0.003,28578.0,28577.0,0.21210689]
[1680686316935,0.48876501,28579.0,28577.0,0.21110689]
[1680686317143,0.49176501,28579.0,28578.0,0.29293294]
[1680686317366,0.48876501,28579.0,28578.0,0.29293294]
[1680686318239,0.49176501,28579.0,28578.0,0.16839056]
[1680686322120,0.49176501,28579.0,28578.0,0.37674845]
[1680686322473,0.49176501,28579.0,28578.0,0.37688789]
[1680686322680,0.49176501,28579.0,28578.0,0.20935789]
[1680686323082,0.49169301,28579.0,28578.0,0.15935789]
[1680686323638,0.04474803,28579.0,28578.0,0.15935789]
[1680686323837,0.04444803,28579.0,28578.0,0.15935789]
[1680686326604,0.40699068,28579.0,28578.0,0.15935789]
[1680686326822,0.40729068,28579.0,28578.0,0.15935789]
[1680686328525,0.40729068,28579.0,28577.0,0.00112]
[1680686328744,0.40699068,28579.0,28577.0,0.001]
[1680686329119,0.40699068,28579.0,28577.0,0.002749]
[1680686329666,0.40399068,28579.0,28577.0,0.002749]
[1680686329845,0.40799068,28579.0,28577.0,0.003749]
[1680686330892,0.40799068,28579.0,28578.0,0.20956171]
[1680686331107,0.40829068,28579.0,28578.0,0.20956171]
[1680686332670,0.40429068,28579.0,28578.0,0.20956171]
[1680686333252,0.40829068,28579.0,28578.0,0.001]
[1680686333451,0.40799068,28579.0,28578.0,0.001]
[1680686333664,0.40799068,28579.0,28578.0,0.21059163]
[1680686333880,0.40829068,28579.0,28578.0,0.21059163]
[1680686334264,0.45011759,28579.0,28578.0,0.21059163]
[1680686334470,0.45861759,28579.0,28578.0,0.08485905]
[1680686334877,0.45861759,28579.0,28578.0,0.001]
[1680686335498,0.1,28578.0,28577.0,0.08485905]
[1680686335698,0.51491056,28578.0,28577.0,0.08485905]
[1680686335924,0.57409642,28578.0,28577.0,0.08485905]
[1680686336123,0.97596244,28578.0,28577.0,0.08485905]
[1680686336787,1.00296244,28578.0,28577.0,0.08485905]
[1680686338831,1.00296244,28578.0,28577.0,0.001]
[1680686340005,0.94377658,28578.0,28577.0,0.001]
[1680686341551,0.94377658,28578.0,28577.0,0.08485905]
[1680686342294,0.94377658,28578.0,28577.0,0.001]
[1680686347251,0.54191056,28578.0,28577.0,0.001]
[1680686347462,1.14359737,28578.0,28577.0,0.00093238]
[1680686347681,0.050479,28576.0,28568.0,0.08385905]
[1680686347895,0.52969056,28574.0,28568.0,0.08403905]
[1680686348114,0.052236,28572.0,28568.0,0.00018]
[1680686348335,0.052064,28569.0,28568.0,0.00018]
[1680686348551,0.40677456,28569.0,28568.0,0.00018]
[1680686348759,0.40677456,28569.0,28568.0,0.00118]
[1680686348986,0.41527456,28569.0,28568.0,0.00118]
[1680686349195,0.41527456,28569.0,28568.0,0.00018]
[1680686349396,0.86937683,28569.0,28568.0,0.00118]
[1680686350246,0.41527456,28569.0,28568.0,0.00018]
[1680686350661,0.47780202,28569.0,28568.0,0.00118]
[1680686350864,0.47780202,28569.0,28568.0,0.00112]
[1680686351125,0.47780202,28569.0,28568.0,0.00106]
[1680686351332,0.47780202,28569.0,28568.0,0.001]
[1680686351548,0.82721279,28569.0,28568.0,0.001]
[1680686352626,0.47780202,28569.0,28568.0,0.001]
[1680686353330,0.021,28569.0,28568.0,0.10004909]
[1680686353539,0.021,28569.0,28568.0,0.10022909]
[1680686353761,0.021,28569.0,28568.0,0.10197909]
[1680686353967,0.021,28569.0,28568.0,0.10022909]
[1680686354420,0.42871413,28571.0,28568.0,0.09922909]
[1680686354639,0.42871413,28571.0,28568.0,0.10322909]
[1680686354815,0.42871413,28571.0,28568.0,0.09922909]
[1680686355043,0.009,28569.0,28568.0,0.10022909]
[1680686356101,0.42871413,28571.0,28568.0,0.09922909]
[1680686356321,0.43771413,28571.0,28568.0,0.10022909]
[1680686356528,0.42871413,28571.0,28569.0,0.09620157]
[1680686356759,0.42871413,28571.0,28569.0,0.09638157]
[1680686357302,0.43771413,28571.0,28569.0,0.09638157]
[1680686357514,0.42871413,28571.0,28569.0,0.09638157]
[1680686357747,0.44471413,28571.0,28569.0,0.09738157]
[1680686358156,0.79942469,28571.0,28569.0,0.00118]
[1680686358366,0.063594,28570.0,28569.0,0.001]
[1680686358566,0.0085,28570.0,28569.0,0.001]
[1680686358984,0.0085,28570.0,28568.0,0.00018]
[1680686359192,0.0245,28570.0,28569.0,0.001]
[1680686359409,0.0085,28570.0,28568.0,0.00018]
[1680686359631,0.0085,28570.0,28569.0,0.002]
[1680686359836,0.0275,28570.0,28569.0,0.002]
[1680686360061,0.0085,28570.0,28568.0,0.00018]
[1680686360268,0.0245,28570.0,28568.0,0.00118]
[1680686360711,0.0085,28570.0,28568.0,0.00018]
[1680686360924,0.0275,28570.0,28569.0,0.002]
[1680686361628,0.081911,28570.0,28569.0,0.002]
[1680686361863,0.0275,28570.0,28569.0,0.002]
[1680686362276,0.080977,28570.0,28568.0,0.00018]
[1680686362485,0.0085,28570.0,28568.0,0.00018]
[1680686362935,0.0085,28570.0,28568.0,0.12808]
[1680686363147,0.0245,28570.0,28568.0,0.12908]
[1680686368466,0.45845068,28570.0,28568.0,0.12908]
[1680686377567,0.45845068,28570.0,28568.0,0.13083]
[1680686377788,0.016,28570.0,28569.0,0.00175]
[1680686378010,0.016,28570.0,28569.0,0.09570169]
[1680686378405,0.016,28570.0,28569.0,0.09395169]
[1680686378858,0.44780289,28573.0,28569.0,0.09395169]
[1680686379071,0.0085,28572.0,28569.0,0.09395169]
[1680686379660,0.39238568,28572.0,28569.0,0.09395169]
[1680686379913,0.019,28570.0,28569.0,0.09595169]
[1680686380097,0.39238568,28572.0,28569.0,0.09395169]
[1680686380296,0.41138568,28572.0,28569.0,0.09595169]
[1680686380509,0.39238568,28572.0,28569.0,0.09395169]
[1680686380804,0.019,28570.0,28569.0,0.09595169]
[1680686381100,0.39238568,28572.0,28569.0,0.09395169]
[1680686381305,0.34243691,28571.0,28569.0,0.09595169]
[1680686381602,0.34243691,28571.0,28569.0,0.09395169]
[1680686382160,0.016,28570.0,28569.0,0.09495169]
[1680686382366,0.016,28570.0,28569.0,0.00118]
[1680686383172,0.34243691,28571.0,28569.0,0.00018]
[1680686383413,0.34243691,28571.0,28569.0,0.00218]
[1680686383414,0.36143691,28571.0,28569.0,0.00218]
[1680686383625,0.34243691,28571.0,28569.0,0.00018]
[1680686383829,0.019,28570.0,28569.0,0.00218]
[1680686384052,0.019,28570.0,28569.0,0.00018]
[1680686384229,0.34243691,28571.0,28569.0,0.00218]
[1680686384438,0.36143691,28571.0,28569.0,0.00218]
[1680686384665,0.34243691,28571.0,28569.0,0.00018]
[1680686384868,0.019,28570.0,28569.0,0.08603905]
[1680686385060,0.34243691,28571.0,28569.0,0.00018]
[1680686385624,0.050539,28570.0,28569.0,0.00018]
[1680686386000,0.34243691,28571.0,28569.0,0.00018]
[1680686386203,0.052906,28570.0,28569.0,0.00218]
[1680686386439,0.052906,28570.0,28569.0,0.00018]
[1680686386647,0.071906,28570.0,28569.0,0.002]
[1680686386999,0.019,28570.0,28569.0,0.00218]
[1680686387443,0.083295,28570.0,28569.0,0.00218]
[1680686387652,0.0275,28570.0,28569.0,0.00218]
[1680686388699,0.0275,28570.0,28569.0,0.08603905]
[1680686389099,0.0275,28570.0,28569.0,0.00212]
[1680686389100,0.44935835,28570.0,28569.0,0.00212]
[1680686389380,0.44935835,28570.0,28569.0,0.00218]
[1680686390513,0.44935835,28570.0,28569.0,0.08603905]
[1680686392285,0.44935835,28570.0,28569.0,0.12795797]
[1680686394162,0.39562535,28570.0,28569.0,0.12795797]
[1680686397558,0.0275,28570.0,28569.0,0.12795797]
[1680686397761,0.079782,28570.0,28569.0,0.12795797]
[1680686398147,0.079782,28570.0,28569.0,0.16987279]
[1680686400044,0.0275,28570.0,28569.0,0.16987279]
[1680686408590,0.0275,28570.0,28569.0,0.37946442]
[1680686410920,0.0275,28570.0,28569.0,0.16987279]
[1680686411128,0.0275,28570.0,28569.0,0.37946442]
[1680686415848,0.0275,28570.0,28569.0,0.16987279]
[1680686416064,0.0275,28570.0,28569.0,0.37946442]
[1680686421188,0.43141317,28570.0,28569.0,0.16987279]
[1680686421392,0.48675317,28570.0,28569.0,0.16987279]
[1680686422681,0.43141317,28570.0,28569.0,0.16987279]
[1680686423328,0.48486617,28570.0,28569.0,0.16987279]
[1680686423536,0.83914673,28570.0,28569.0,0.16987279]
[1680686423989,0.78612373,28570.0,28569.0,0.16987279]
[1680686424203,0.0275,28570.0,28569.0,0.16987279]
[1680686424864,0.0275,28570.0,28569.0,0.37946442]
[1680686425083,0.0275,28570.0,28569.0,0.37825404]
[1680686425289,0.0275,28570.0,28569.0,0.37807404]
[1680686425745,0.0275,28570.0,28569.0,0.2176383]
[1680686430625,0.82234993,28570.0,28569.0,0.12592309]
[1680686430834,0.83243235,28570.0,28568.0,0.33777499]
[1680686431079,0.83243235,28570.0,28569.0,0.0839519]
[1680686431080,0.42300279,28570.0,28569.0,0.0839519]
[1680686431291,0.47542679,28570.0,28569.0,0.0839519]
[1680686431515,0.45642679,28570.0,28569.0,0.0839519]
[1680686431721,0.47742679,28570.0,28569.0,0.0839519]
[1680686432168,0.45642679,28570.0,28569.0,0.0839519]
[1680686432384,0.48342679,28570.0,28568.0,0.33777499]
[1680686432596,0.062483,28569.0,28568.0,0.33777499]
[1680686433046,0.062483,28569.0,28568.0,0.25382309]
[1680686434324,0.41719356,28569.0,28568.0,0.25382309]
[1680686434527,0.41749356,28569.0,28568.0,0.25382309]
[1680686434732,0.062483,28569.0,28568.0,0.25382309]
[1680686434907,0.087597,28569.0,28568.0,0.25382309]
[1680686435114,0.0085,28569.0,28568.0,0.42167884]
[1680686435322,0.0355,28569.0,28568.0,0.42167884]
[1680686435563,0.06202,28569.0,28568.0,0.42167884]
[1680686435767,0.0355,28569.0,28568.0,0.42167884]
[1680686436402,0.089609,28569.0,28568.0,0.25382309]
[1680686436604,0.062609,28569.0,28568.0,0.25382309]
[1680686437449,0.062609,28569.0,28568.0,0.25373324]
[1680686438082,0.089609,28569.0,28568.0,0.25373324]
[1680686441313,0.43895035,28569.0,28568.0,0.25373324]
[1680686441519,0.43925035,28569.0,28568.0,0.25373324]
[1680686449704,0.43925035,28569.0,28568.0,0.33762981]
[1680686450516,0.089909,28569.0,28568.0,0.33762981]
[1680686450717,0.0355,28569.0,28568.0,0.33762981]
[1680686450923,0.088405,28569.0,28568.0,0.33762981]
[1680686451655,0.088405,28569.0,28568.0,0.33762794]
[1680686451888,0.088405,28569.0,28568.0,0.25373324]
[1680686452111,0.088405,28569.0,28568.0,0.33762679]
[1680686454015,0.088405,28569.0,28568.0,0.2117037]
[1680686454016,0.48261202,28569.0,28568.0,0.2117037]
[1680686454227,0.48291202,28569.0,28568.0,0.2117037]
[1680686459183,0.48245366,28569.0,28568.0,0.2117637]
[1680686459874,0.48245366,28569.0,28568.0,0.33768679]
[1680686460093,0.48245366,28569.0,28568.0,0.33774679]
[1680686461047,0.08824664,28569.0,28568.0,0.33774679]
[1680686461269,0.08824664,28569.0,28568.0,0.33762679]
[1680686461476,0.08824664,28569.0,28568.0,0.25373324]
[1680686463463,0.08824664,28569.0,28568.0,0.33763086]
[1680686464249,0.08824664,28569.0,28568.0,0.25373324]
[1680686464694,0.08824664,28569.0,28568.0,0.3376353]
[1680686465206,0.83701474,28569.0,28568.0,0.3376353]
[1680686465333,0.83701474,28569.0,28568.0,0.3377553]
[1680686465536,0.83701474,28569.0,28568.0,0.21183221]
[1680686465744,0.83701474,28569.0,28568.0,0.3376953]
[1680686465944,0.83701474,28569.0,28568.0,0.21183221]
[1680686466143,0.83701474,28569.0,28568.0,0.3376953]
[1680686466341,0.83701474,28569.0,28568.0,0.3377553]
[1680686467174,0.83701474,28569.0,28568.0,0.21183221]
[1680686467369,0.83701474,28569.0,28568.0,0.21177221]
[1680686467993,0.83701474,28569.0,28568.0,0.3376953]
[1680686468317,0.83701474,28569.0,28568.0,0.3377553]
[1680686468517,0.83701474,28569.0,28568.0,0.21183221]
[1680686468716,0.83701474,28569.0,28568.0,0.21177221]
[1680686468920,0.83731474,28569.0,28568.0,0.04846666]
[1680686469310,0.83731474,28569.0,28568.0,0.17438975]
[1680686469506,0.83731474,28569.0,28568.0,0.04846666]
[1680686470139,0.83731474,28569.0,28568.0,0.17438975]
[1680686472021,0.83731474,28569.0,28568.0,0.12592309]
[1680686476040,0.66888548,28569.0,28566.0,0.12610309]
[1680686476254,0.053372,28567.0,28565.0,0.12592309]
[1680686476473,0.35471056,28568.0,28564.0,0.29395884]
[1680686476474,0.41560356,28566.0,28564.0,0.29395884]
[1680686476689,0.056233,28565.0,28564.0,0.12610309]
[1680686476918,0.8016815,28565.0,28564.0,0.12598309]
[1680686477124,0.8016815,28565.0,28564.0,0.12592309]
[1680686477336,0.8019815,28565.0,28563.0,0.12604309]
[1680686477587,0.41795156,28564.0,28562.0,0.12610309]
[1680686477887,0.053754,28563.0,28562.0,0.12592309]
[1680686478098,0.41696456,28563.0,28562.0,0.12592309]
[1680686479141,0.49907481,28563.0,28562.0,0.20982238]
[1680686479350,0.41726456,28563.0,28562.0,0.20982238]
[1680686479582,0.83189595,28563.0,28562.0,0.08389929]
[1680686479785,0.83159595,28563.0,28562.0,0.08389929]
[1680686479990,0.85889595,28563.0,28562.0,0.08389929]
[1680686480193,0.83189595,28563.0,28562.0,0.08389929]
[1680686480431,0.85889595,28563.0,28562.0,0.08389929]
[1680686480847,0.85889595,28563.0,28561.0,0.20982238]
[1680686481057,0.41617956,28562.0,28561.0,0.20982238]
[1680686481269,0.41647956,28562.0,28560.0,0.32659925]
[1680686481484,0.050718,28561.0,28560.0,0.24263996]
[1680686481700,0.059218,28561.0,28560.0,0.24263996]
[1680686481912,0.059218,28561.0,28560.0,0.32646216]
[1680686482116,0.059218,28561.0,28560.0,0.24263996]
[1680686482316,0.059218,28561.0,28560.0,0.32645917]
[1680686482524,0.059218,28561.0,28560.0,0.24263996]
[1680686482963,0.059218,28561.0,28560.0,0.08393913]
[1680686483153,0.086218,28561.0,28559.0,0.08399913]
[1680686483377,0.086218,28561.0,28559.0,0.08381913]
[1680686483378,0.054179,28560.0,28559.0,0.08381913]
[1680686483609,0.55928637,28560.0,28558.0,0.00018]
[1680686483839,0.54775637,28559.0,28557.0,0.0214]
[1680686484078,0.10788564,28558.0,28557.0,0.0214]
[1680686484335,0.4710962,28558.0,28557.0,0.0214]
[1680686485215,0.4710962,28558.0,28549.0,0.0213]
[1680686485216,0.1,28557.0,28549.0,0.0213]
[1680686485431,0.1,28557.0,28550.0,6e-05]
[1680686485432,0.55897437,28556.0,28550.0,6e-05]
[1680686485676,0.050988,28555.0,28550.0,6e-05]
[1680686485881,0.46321056,28554.0,28550.0,6e-05]
[1680686486098,0.19469181,28553.0,28549.0,0.0213]
[1680686486316,0.41476156,28552.0,28549.0,0.0213]
[1680686486540,0.052062,28551.0,28549.0,0.0213]
[1680686486772,0.36321056,28550.0,28549.0,0.0213]
[1680686486997,0.41693456,28550.0,28549.0,0.0213]
[1680686487637,0.85533654,28550.0,28549.0,0.0213]
[1680686487856,0.88233654,28550.0,28549.0,0.0213]
[1680686489619,0.85533654,28550.0,28549.0,0.0213]
[1680686489817,0.88233654,28550.0,28549.0,0.0213]
[1680686492853,0.88263654,28550.0,28549.0,0.0213]
[1680686493056,0.88233654,28550.0,28549.0,0.0213]
[1680686494116,0.97060019,28550.0,28549.0,0.0213]
[1680686494741,0.88233654,28550.0,28549.0,0.0213]
[1680686500093,0.88242654,28550.0,28549.0,0.0213]
[1680686500319,0.88263654,28550.0,28549.0,0.0213]
[1680686500730,0.88233654,28550.0,28549.0,0.0213]
[1680686501162,0.58583137,28550.0,28549.0,0.0213]
[1680686501372,0.58583137,28550.0,28546.0,0.028009]
[1680686501373,0.31,28549.0,28546.0,0.028009]
[1680686501593,0.35471056,28547.0,28544.0,0.021395]
[1680686501826,0.35471056,28545.0,28544.0,0.021395]
[1680686502035,0.85249211,28545.0,28544.0,0.021395]
[1680686502248,0.86099211,28545.0,28544.0,0.021395]
[1680686502460,0.94237285,28545.0,28544.0,0.021395]
[1680686502673,1.24237285,28545.0,28544.0,0.021395]
[1680686503604,1.26937285,28545.0,28544.0,0.021395]
[1680686504245,1.26937285,28545.0,28544.0,0.01915622]
[1680686504898,1.24237285,28545.0,28544.0,0.01915622]
[1680686505106,1.26937285,28545.0,28544.0,0.01915622]
[1680686509098,1.61219428,28545.0,28544.0,0.01915622]
[1680686509329,1.12814256,28545.0,28544.0,0.01915622]
[1680686509776,1.12814256,28545.0,28544.0,0.01051978]
[1680686512990,1.12815256,28545.0,28544.0,0.01051978]
[1680686513199,1.35113011,28545.0,28544.0,0.01051978]
[1680686513404,1.49623912,28545.0,28544.0,0.01051978]
[1680686513821,1.46923912,28545.0,28544.0,0.01051978]
[1680686514019,1.49623912,28545.0,28544.0,0.01051978]
[1680686515909,0.45471056,28543.0,28540.0,0.00012]
[1680686516125,0.21,28540.0,28531.0,0.02136]
[1680686516339,0.52995056,28535.0,28531.0,0.02136]
[1680686516555,0.84923337,28535.0,28531.0,0.02136]
[1680686516762,0.71583656,28535.0,28531.0,0.02136]
[1680686516974,0.96264022,28535.0,28534.0,0.02240504]
[1680686517873,0.98964022,28535.0,28534.0,0.02240504]
[1680686518080,0.96264022,28535.0,28534.0,0.02240504]
[1680686518492,0.98964022,28535.0,28534.0,0.02240504]
[1680686518727,0.89105656,28535.0,28534.0,0.02240504]
[1680686518928,0.74283656,28535.0,28534.0,0.02240504]
[1680686520116,0.71583656,28535.0,28534.0,0.02240504]
[1680686520336,0.74283656,28535.0,28534.0,0.02240504]
[1680686520556,0.74373656,28535.0,28534.0,0.01799233]
[1680686520704,0.85666122,28535.0,28534.0,0.01799233]
[1680686524515,0.89087857,28535.0,28534.0,0.01799233]
[1680686526107,1.09764783,28535.0,28534.0,0.01799233]
[1680686526317,1.07064783,28535.0,28534.0,0.01799233]
[1680686526619,1.09764783,28535.0,28534.0,0.01799233]
[1680686526855,1.07064783,28535.0,28534.0,0.01799233]
[1680686527059,1.09764783,28535.0,28534.0,0.01799233]
[1680686527674,1.07064783,28535.0,28534.0,0.01799233]
[1680686528731,1.09764783,28535.0,28534.0,0.01799233]
[1680686529401,0.98472317,28535.0,28534.0,0.01799233]
[1680686530649,0.95772317,28535.0,28534.0,0.01799233]
[1680686531674,0.98472317,28535.0,28534.0,0.01799233]
[1680686531888,0.95772317,28535.0,28534.0,0.01799233]
[1680686532088,0.98472317,28535.0,28534.0,0.01799233]
[1680686532290,1.07374649,28535.0,28534.0,0.01799233]
[1680686532709,1.10074649,28535.0,28534.0,0.01799233]
[1680686532923,1.07374649,28535.0,28534.0,0.01799233]
[1680686533132,1.10074649,28535.0,28534.0,0.01799233]
[1680686533355,1.07374649,28535.0,28534.0,0.01799233]
[1680686533575,1.10074649,28535.0,28534.0,0.01799233]
[1680686534717,1.08246814,28535.0,28534.0,0.01799233]